bitfinex-derivatives/quotes_BTCF0:USTF0_20250212
["timestamp","ask_amount","ask_price","bid_price","bid_amount"]
[1739356730081,0.30344085,96278.0,96277.0,0.01]
[1739356730382,0.30344085,96278.0,96277.0,0.007]
[1739356732685,0.30344085,96278.0,96277.0,0.008]
[1739356733076,0.30344085,96278.0,96277.0,0.009]
[1739356733677,0.30344085,96278.0,96277.0,0.011]
[1739356735583,0.30344085,96278.0,96277.0,0.009]
[1739356736992,0.30344085,96278.0,96277.0,0.008]
[1739356737284,0.30344085,96278.0,96277.0,0.009]
[1739356737587,0.30344085,96278.0,96277.0,0.01]
[1739356738689,0.30344085,96278.0,96277.0,0.008]
[1739356738988,0.30344085,96278.0,96277.0,0.01]
[1739356740281,0.30344085,96278.0,96277.0,0.009]
[1739356740487,0.09571835,96278.0,96277.0,0.009]
[1739356740887,0.09571835,96278.0,96277.0,0.1024]
[1739356741393,0.09571835,96278.0,96277.0,0.1034]
[1739356741887,0.09571835,96278.0,96277.0,0.1014]
[1739356742087,0.09571835,96278.0,96277.0,0.1034]
[1739356742289,4.29e-05,96278.0,96277.0,0.1034]
[1739356743488,4.29e-05,96278.0,96277.0,0.1014]
[1739356743690,4.29e-05,96278.0,96277.0,0.1044]
[1739356744090,4.29e-05,96278.0,96277.0,0.1014]
[1739356744291,4.29e-05,96278.0,96277.0,0.1034]
[1739356744791,4.29e-05,96278.0,96277.0,0.1044]
[1739356745596,4.29e-05,96278.0,96277.0,0.1074]
[1739356747092,4.29e-05,96278.0,96277.0,0.1044]
[1739356747294,4.29e-05,96278.0,96277.0,0.1074]
[1739356756495,4.29e-05,96278.0,96277.0,0.11832]
[1739356757691,4.29e-05,96278.0,96277.0,0.11532]
[1739356757892,4.29e-05,96278.0,96277.0,0.3260447]
[1739356762510,4.29e-05,96278.0,96277.0,0.3230447]
[1739356762807,4.29e-05,96278.0,96277.0,0.3260447]
[1739356763107,4.29e-05,96278.0,96277.0,0.3230447]
[1739356763307,4.29e-05,96278.0,96277.0,0.3260447]
[1739356763510,4.29e-05,96278.0,96277.0,0.6868447]
[1739356764408,4.29e-05,96278.0,96277.0,0.3260447]
[1739356764714,4.29e-05,96278.0,96277.0,0.6868447]
[1739356766407,4.29e-05,96278.0,96277.0,0.3260447]
[1739356766715,4.29e-05,96278.0,96277.0,0.6868447]
[1739356767207,4.29e-05,96278.0,96277.0,0.6546447]
[1739356770807,0.01090671,96280.0,96277.0,0.44692]
[1739356771017,0.0659,96285.0,96277.0,0.44692]
[1739356771316,0.0659,96285.0,96284.0,0.2077096]
[1739356772020,0.07631506,96285.0,96284.0,0.2077096]
[1739356772725,0.01041506,96285.0,96284.0,0.2077096]
[1739356772921,0.0001558,96286.0,96285.0,0.2077074]
[1739356773223,0.0001558,96286.0,96285.0,0.5684645]
[1739356774220,0.01065713,96286.0,96285.0,0.5684645]
[1739356774426,0.0001558,96286.0,96285.0,0.5684645]
[1739356776528,0.0001558,96286.0,96285.0,0.5734645]
[1739356777926,0.01053719,96286.0,96285.0,0.5734645]
[1739356779638,0.10619794,96286.0,96285.0,0.5734645]
[1739356789830,0.01053719,96286.0,96285.0,0.5734645]
[1739356790638,0.01053719,96286.0,96285.0,0.5834645]
[1739356791539,0.01053719,96286.0,96285.0,0.5814645]
[1739356791738,0.01053719,96286.0,96285.0,0.5864645]
[1739356792139,0.01053719,96286.0,96285.0,0.5814645]
[1739356792341,0.01053719,96286.0,96285.0,0.5844645]
[1739356793244,0.01053719,96286.0,96285.0,0.5824645]
[1739356794331,0.01053719,96286.0,96285.0,0.5794645]
[1739356794531,0.01053719,96286.0,96285.0,0.5824645]
[1739356794940,0.01053719,96286.0,96285.0,0.5794645]
[1739356795139,0.01053719,96286.0,96285.0,0.5824645]
[1739356795534,0.01053719,96286.0,96285.0,0.5794645]
[1739356795737,0.01053719,96286.0,96285.0,0.5824645]
[1739356796135,0.01053719,96286.0,96285.0,0.5714645]
[1739356796441,0.01053719,96286.0,96285.0,0.5834645]
[1739356796932,0.01053719,96286.0,96285.0,0.2106645]
[1739356797132,0.01053719,96286.0,96285.0,0.5834645]
[1739356797537,0.01053719,96286.0,96285.0,0.2226645]
[1739356797738,0.01053719,96286.0,96285.0,0.5834645]
[1739356798237,0.01053719,96286.0,96285.0,0.5804645]
[1739356798437,0.01053719,96286.0,96285.0,0.5834645]
[1739356801943,0.01053719,96286.0,96285.0,0.5804645]
[1739356802242,0.01053719,96286.0,96285.0,0.5824645]
[1739356802841,0.01053719,96286.0,96285.0,0.5714645]
[1739356803042,0.01053719,96286.0,96285.0,0.5834645]
[1739356804144,0.01053719,96286.0,96285.0,0.5714645]
[1739356804442,0.01053719,96286.0,96285.0,0.5834645]
[1739356805446,0.10619764,96286.0,96285.0,0.5834645]
[1739356806948,0.10619764,96286.0,96285.0,0.5714645]
[1739356807146,0.10619764,96286.0,96285.0,0.5834645]
[1739356807847,0.10619764,96286.0,96285.0,0.5804645]
[1739356808047,0.10619764,96286.0,96285.0,0.5834645]
[1739356809045,0.10619764,96286.0,96285.0,0.5804645]
[1739356809248,0.10619764,96286.0,96285.0,0.5834645]
[1739356811647,0.10619764,96286.0,96285.0,0.5684645]
[1739356811842,0.10619764,96286.0,96285.0,0.5834645]
[1739356812449,0.10619764,96286.0,96285.0,0.5714645]
[1739356812650,0.10619764,96286.0,96285.0,0.5834645]
[1739356815454,0.10619764,96286.0,96285.0,0.5714645]
[1739356815654,0.10619764,96286.0,96285.0,0.5834645]
[1739356818255,0.10619764,96286.0,96285.0,0.5804645]
[1739356818456,0.10619764,96286.0,96285.0,0.5834645]
[1739356820049,0.10619764,96286.0,96285.0,0.5714645]
[1739356820248,0.10619764,96286.0,96285.0,0.5824645]
[1739356820456,0.10619764,96286.0,96285.0,0.2216645]
[1739356820658,0.10619764,96286.0,96285.0,0.5824645]
[1739356821657,0.10619764,96286.0,96285.0,0.5794645]
[1739356821856,0.10619764,96286.0,96285.0,0.5824645]
[1739356822054,0.10619764,96286.0,96285.0,0.5834645]
[1739356822855,0.10619764,96286.0,96285.0,0.5714645]
[1739356823060,0.10619764,96286.0,96285.0,0.5834645]
[1739356825251,0.10619764,96286.0,96285.0,0.5714645]
[1739356825450,0.10619764,96286.0,96285.0,0.5824645]
[1739356826060,0.10619764,96286.0,96285.0,0.5714645]
[1739356826358,0.10619764,96286.0,96285.0,0.5834645]
[1739356828462,0.10619764,96286.0,96285.0,0.5824645]
[1739356829956,0.10619764,96286.0,96285.0,0.5714645]
[1739356830163,0.10619764,96286.0,96285.0,0.5814645]
[1739356831666,0.10619764,96286.0,96285.0,0.5794645]
[1739356832366,0.10619764,96286.0,96285.0,0.6409445]
[1739356832558,0.10619764,96286.0,96285.0,0.6479445]
[1739356833164,0.10619764,96286.0,96285.0,0.5784645]
[1739356833368,0.10619764,96286.0,96285.0,0.6479045]
[1739356833868,0.10619764,96286.0,96285.0,0.6478645]
[1739356834961,0.10619764,96286.0,96285.0,0.6478245]
[1739356835163,0.31390284,96286.0,96285.0,0.6478245]
[1739356835365,0.34680284,96286.0,96285.0,0.6478245]
[1739356835658,0.34680284,96286.0,96285.0,0.2176645]
[1739356835867,0.34680284,96286.0,96285.0,0.2106645]
[1739356836068,0.34680284,96286.0,96285.0,0.2176645]
[1739356838074,0.34680284,96286.0,96285.0,0.2126645]
[1739356839176,0.34680284,96286.0,96270.0,0.36132]
[1739356839177,0.13909764,96286.0,96270.0,0.36132]
[1739356839383,0.2077273,96276.0,96270.0,0.5685382]
[1739356839681,0.0628,96275.0,96270.0,0.3608]
[1739356840781,0.0628,96275.0,96273.0,0.2077331]
[1739356842175,0.0628,96275.0,96273.0,0.2117331]
[1739356842874,0.0628,96275.0,96273.0,0.2077331]
[1739356843076,0.0628,96275.0,96273.0,0.2097331]
[1739356843277,0.07346958,96275.0,96273.0,0.2097331]
[1739356843880,0.09566045,96274.0,96273.0,0.2097331]
[1739356844982,0.09566045,96274.0,96273.0,0.2077331]
[1739356845189,0.09566045,96274.0,96273.0,0.2117331]
[1739356845787,0.09566045,96274.0,96273.0,0.2077331]
[1739356846087,0.09566045,96274.0,96273.0,0.2107331]
[1739356846678,0.09566045,96274.0,96273.0,0.2117331]
[1739356846881,0.07346958,96275.0,96273.0,0.2117331]
[1739356848881,0.07346958,96275.0,96273.0,0.2127331]
[1739356849481,0.07346958,96275.0,96273.0,0.2077331]
[1739356849682,0.07346958,96275.0,96273.0,0.2127331]
[1739356851884,0.07346958,96275.0,96273.0,0.005]
[1739356852086,0.07346958,96275.0,96274.0,0.2077311]
[1739356853293,0.28119848,96275.0,96274.0,0.2077311]
[1739356854286,0.28119848,96275.0,96274.0,0.2117311]
[1739356854997,0.28119848,96275.0,96274.0,0.2107311]
[1739356855695,0.28119848,96275.0,96274.0,0.2077311]
[1739356855897,0.28119848,96275.0,96274.0,0.2117311]
[1739356856789,0.37687792,96275.0,96274.0,0.2117311]
[1739356857495,0.37687792,96275.0,96274.0,0.2077311]
[1739356857791,0.37687792,96275.0,96274.0,0.2107311]
[1739356858389,0.37687792,96275.0,96274.0,0.2087311]
[1739356860691,0.34597792,96275.0,96274.0,0.2087311]
[1739356862503,0.31407792,96275.0,96274.0,0.2087311]
[1739356869292,0.31407792,96275.0,96274.0,0.001]
[1739356869702,0.31507792,96275.0,96274.0,0.001]
[1739356871303,0.10734902,96275.0,96269.0,0.2077408]
[1739356871507,0.10734902,96275.0,96274.0,0.001]
[1739356871508,0.31507812,96275.0,96274.0,0.001]
[1739356871896,0.31407812,96275.0,96274.0,0.001]
[1739356872094,0.31507812,96275.0,96274.0,0.001]
[1739356873003,0.2077322,96274.0,96269.0,0.2077407]
[1739356874607,0.2077322,96274.0,96269.0,0.2117407]
[1739356875098,0.2077322,96274.0,96270.0,0.2077394]
[1739356876704,0.10634902,96275.0,96274.0,0.2077311]
[1739356877709,0.01066958,96275.0,96274.0,0.2077311]
[1739356877901,0.31133886,96282.0,96270.0,0.0677]
[1739356878207,0.31133886,96282.0,96281.0,0.207716]
[1739356878402,0.32170203,96282.0,96281.0,0.207716]
[1739356879802,0.32470203,96282.0,96281.0,0.207716]
[1739356880601,0.10903254,96282.0,96281.0,0.207716]
[1739356881307,0.11303254,96282.0,96281.0,0.207716]
[1739356883302,0.01736317,96282.0,96281.0,0.207716]
[1739356885808,0.11303254,96282.0,96281.0,0.207716]
[1739356887508,0.11303254,96282.0,96281.0,0.568516]
[1739356891614,0.11003254,96282.0,96281.0,0.570516]
[1739356891804,0.10603254,96282.0,96281.0,0.570516]
[1739356892005,0.10703254,96282.0,96281.0,0.582516]
[1739356892201,0.10703254,96282.0,96281.0,0.583516]
[1739356892814,0.10703254,96282.0,96281.0,0.580516]
[1739356893506,0.10603254,96282.0,96281.0,0.579516]
[1739356895208,0.10703254,96282.0,96281.0,0.580516]
[1739356895413,0.10703254,96282.0,96281.0,0.578516]
[1739356895614,0.10703254,96282.0,96281.0,0.580516]
[1739356896015,0.10703254,96282.0,96281.0,0.578516]
[1739356896016,0.10603254,96282.0,96281.0,0.578516]
[1739356896810,0.10603254,96282.0,96281.0,0.579516]
[1739356897206,0.10703254,96282.0,96281.0,0.580516]
[1739356898412,0.10703254,96282.0,96281.0,0.581516]
[1739356899516,0.10703254,96282.0,96281.0,0.578516]
[1739356899718,0.10703254,96282.0,96281.0,0.580516]
[1739356900016,0.10603254,96282.0,96281.0,0.570516]
[1739356900212,0.10603254,96282.0,96281.0,0.577516]
[1739356901718,0.10603254,96282.0,96281.0,0.575516]
[1739356901913,0.10603254,96282.0,96281.0,0.579516]
[1739356905811,0.10603254,96282.0,96281.0,0.578516]
[1739356907020,0.10603254,96282.0,96281.0,0.570516]
[1739356907220,0.10603254,96282.0,96281.0,0.577516]
[1739356907721,0.10603254,96282.0,96281.0,0.576516]
[1739356908920,0.10603254,96282.0,96281.0,0.575516]
[1739356910327,0.1823578,96282.0,96281.0,0.575516]
[1739356910517,0.1823578,96282.0,96281.0,0.574516]
[1739356911626,0.1823578,96282.0,96281.0,0.573516]
[1739356912129,0.1823578,96282.0,96281.0,0.572516]
[1739356915425,0.1823578,96282.0,96281.0,0.571516]
[1739356916433,0.1823578,96282.0,96281.0,0.48503655]
[1739356918829,0.1823578,96282.0,96281.0,0.48403655]
[1739356919131,0.1823578,96282.0,96281.0,0.48503655]
[1739356919323,0.1823578,96282.0,96273.0,0.2077325]
[1739356919519,0.207728,96276.0,96273.0,0.2077325]
[1739356919723,0.062,96275.0,96273.0,0.2077325]
[1739356920529,0.062,96275.0,96273.0,0.2147325]
[1739356920923,0.062,96275.0,96273.0,0.2137325]
[1739356921131,0.062,96275.0,96273.0,0.2147325]
[1739356923427,0.17199463,96274.0,96273.0,0.2147325]
[1739356933531,0.17199463,96274.0,96273.0,0.007]
[1739356933738,0.2077419,96269.0,96267.0,0.0001558]
[1739356935041,0.2087419,96269.0,96267.0,0.0101558]
[1739356935637,0.2087419,96269.0,96267.0,0.0131558]
[1739356935848,0.17199463,96268.0,96267.0,0.0131558]
[1739356937945,0.17199463,96268.0,96267.0,0.0031558]
[1739356938152,0.17299463,96268.0,96267.0,0.0121558]
[1739356944148,0.17299463,96268.0,96267.0,0.219902]
[1739356948059,0.09666937,96268.0,96267.0,0.219902]
[1739356952561,0.001,96268.0,96267.0,0.219902]
[1739356954267,0.09666937,96268.0,96267.0,0.219902]
[1739356962972,0.30441347,96268.0,96267.0,0.219902]
[1739356966767,0.30441347,96268.0,96267.0,0.0121558]
[1739356967880,0.33521347,96268.0,96267.0,0.0121558]
[1739356968578,0.41155273,96268.0,96267.0,0.0121558]
[1739356971587,0.41055273,96268.0,96267.0,0.0021558]
[1739356971788,0.41055273,96268.0,96267.0,0.0081558]
[1739356972286,0.41055273,96268.0,96267.0,0.0061558]
[1739356972488,0.41055273,96268.0,96267.0,0.0001558]
[1739356973986,0.41255273,96268.0,96267.0,0.0001558]
[1739356974683,0.41355273,96268.0,96267.0,0.0001558]
[1739356974878,0.20580863,96268.0,96252.0,0.3608]
[1739356975187,0.207751,96265.0,96262.0,0.3608]
[1739356975381,0.207751,96265.0,96264.0,0.20775]
[1739356976693,0.207751,96265.0,96264.0,0.20875]
[1739356977692,0.207751,96265.0,96264.0,0.21275]
[1739356978288,0.37975963,96265.0,96264.0,0.21275]
[1739356978490,0.37975963,96265.0,96264.0,0.21175]
[1739356979191,0.37975963,96265.0,96264.0,0.20875]
[1739356979491,0.37975963,96265.0,96264.0,0.21075]
[1739356980992,0.37975963,96265.0,96264.0,0.003]
[1739356981392,0.17200863,96265.0,96260.0,0.2077611]
[1739356981590,0.2077592,96261.0,96260.0,0.2077611]
[1739356983893,0.2077592,96261.0,96260.0,0.2087611]
[1739356984093,0.2077592,96261.0,96260.0,0.2127611]
[1739356984388,0.37975973,96265.0,96264.0,0.2077527]
[1739356985589,0.2077511,96265.0,96264.0,0.2077527]
[1739356986991,0.2077511,96265.0,96264.0,0.2087527]
[1739356987792,0.2077511,96265.0,96264.0,0.2077527]
[1739356987998,0.2077511,96265.0,96264.0,0.2127527]
[1739356988598,0.2077511,96265.0,96264.0,0.2097527]
[1739356988797,0.2077511,96265.0,96264.0,0.2087527]
[1739356989597,0.30344165,96265.0,96264.0,0.2087527]
[1739356990695,0.30344165,96265.0,96264.0,0.2107527]
[1739356991597,0.30344165,96265.0,96264.0,0.2097527]
[1739356996399,0.09569055,96265.0,96264.0,0.2097527]
[1739356998105,0.09569055,96265.0,96264.0,0.5705527]
[1739356998305,0.08753476,96265.0,96264.0,0.5705527]
[1739357000206,0.01063124,96272.0,96271.0,0.2077376]
[1739357000505,0.31152506,96280.0,96278.0,0.2077225]
[1739357001503,0.01066994,96279.0,96278.0,0.2077225]
[1739357001700,0.31152506,96280.0,96278.0,0.2077225]
[1739357002004,0.31152506,96280.0,96279.0,0.3608]
[1739357002401,0.51924326,96280.0,96279.0,0.3608]
[1739357003399,0.51924326,96280.0,96278.0,0.001]
[1739357003605,0.0317,96279.0,96278.0,0.001]
[1739357003896,0.0317,96279.0,96272.0,0.2077343]
[1739357004098,0.2077333,96273.0,96272.0,0.2077343]
[1739357004294,0.0317,96279.0,96263.0,0.3608]
[1739357004602,0.0322,96278.0,96267.0,0.2077454]
[1739357004808,0.2077355,96272.0,96271.0,0.2077335]
[1739357005198,0.0322,96278.0,96264.0,0.0682]
[1739357005505,0.0357,96279.0,96268.0,0.08168539]
[1739357006207,0.2077295,96275.0,96273.0,0.207732]
[1739357008100,0.2117295,96275.0,96273.0,0.207732]
[1739357009899,0.17202311,96274.0,96273.0,0.207732]
[1739357011409,0.17602311,96274.0,96273.0,0.207732]
[1739357016011,0.09968484,96274.0,96273.0,0.207732]
[1739357021111,0.09968484,96274.0,96267.0,0.3608]
[1739357021324,0.2077579,96264.0,96263.0,0.2077544]
[1739357021917,0.0328,96270.0,96256.0,0.3608]
[1739357022112,0.2077682,96258.0,96257.0,0.2077675]
[1739357023813,0.2077682,96258.0,96257.0,0.2147675]
[1739357025317,0.2077682,96258.0,96257.0,0.2157675]
[1739357025920,0.2077682,96258.0,96257.0,0.2147675]
[1739357026120,0.2077682,96258.0,96257.0,0.2137675]
[1739357026316,0.30346081,96258.0,96257.0,0.2137675]
[1739357026522,0.37980228,96258.0,96257.0,0.2137675]
[1739357026820,0.37980228,96258.0,96257.0,0.2087675]
[1739357027119,0.37980228,96258.0,96257.0,0.2137675]
[1739357027516,0.37980228,96258.0,96257.0,0.2127675]
[1739357027722,0.37980228,96258.0,96257.0,0.2137675]
[1739357028222,0.39010458,96258.0,96257.0,0.2137675]
[1739357029621,0.39010458,96258.0,96257.0,0.2127675]
[1739357029923,0.39010458,96258.0,96257.0,0.2087675]
[1739357030121,0.39010458,96258.0,96257.0,0.2147675]
[1739357034724,0.39010458,96258.0,96257.0,0.2137675]
[1739357035428,0.39010458,96258.0,96257.0,0.2157675]
[1739357036116,0.39010458,96258.0,96257.0,0.2147675]
[1739357036316,0.39010458,96258.0,96257.0,0.2157675]
[1739357037927,0.39010458,96258.0,96257.0,0.2137675]
[1739357038634,0.18233638,96258.0,96257.0,0.2157675]
[1739357039322,0.18233638,96258.0,96257.0,0.2097675]
[1739357039524,0.18233638,96258.0,96257.0,0.2147675]
[1739357040331,0.18233638,96258.0,96257.0,0.2127675]
[1739357040531,0.18233638,96258.0,96257.0,0.2137675]
[1739357041231,0.18233638,96258.0,96257.0,0.2087675]
[1739357041430,0.18233638,96258.0,96257.0,0.2147675]
[1739357042132,0.18233638,96258.0,96257.0,0.2137675]
[1739357042333,0.10599491,96258.0,96257.0,0.2137675]
[1739357043338,0.31376061,96258.0,96257.0,0.2137675]
[1739357043632,0.2077722,96255.0,96236.0,0.2078132]
[1739357043830,0.2078099,96238.0,96236.0,0.2078132]
[1739357046235,0.2078099,96238.0,96236.0,0.2268132]
[1739357046436,0.09569261,96237.0,96236.0,0.2268132]
[1739357046634,0.09569261,96237.0,96236.0,0.2218132]
[1739357047231,0.09569261,96237.0,96236.0,0.2228132]
[1739357047431,0.09569261,96237.0,96236.0,0.2118132]
[1739357048232,0.09569261,96237.0,96236.0,0.2138132]
[1739357048836,0.09569261,96237.0,96236.0,0.2088132]
[1739357049034,0.09569261,96237.0,96236.0,0.2108132]
[1739357049336,0.09569261,96237.0,96236.0,0.2098132]
[1739357049840,0.09569261,96237.0,96236.0,0.002]
[1739357050041,0.09569261,96237.0,96236.0,0.003]
[1739357051134,0.09569261,96237.0,96236.0,0.005]
[1739357051832,0.09569261,96237.0,96235.0,0.2078135]
[1739357052032,0.09569261,96237.0,96236.0,0.003]
[1739357052538,0.09569261,96237.0,96236.0,0.004]
[1739357052732,0.09569261,96237.0,96236.0,0.006]
[1739357053135,0.09569261,96237.0,96236.0,0.005]
[1739357053740,0.09569261,96237.0,96236.0,0.006]
[1739357053943,0.45649261,96237.0,96236.0,0.006]
[1739357054730,0.45649261,96237.0,96236.0,0.001]
[1739357054927,0.45649261,96237.0,96236.0,0.006]
[1739357055837,0.3608,96237.0,96236.0,0.006]
[1739357057743,0.3608,96237.0,96236.0,0.001]
[1739357057938,0.3608,96237.0,96236.0,0.006]
[1739357058339,0.3608,96237.0,96236.0,0.2138131]
[1739357058536,0.3608,96237.0,96236.0,0.2088131]
[1739357058736,0.3608,96237.0,96236.0,0.2138131]
[1739357061836,0.568611,96237.0,96236.0,0.006]
[1739357062036,0.568611,96237.0,96236.0,0.005]
[1739357062246,0.600811,96237.0,96236.0,0.006]
[1739357062944,0.393,96237.0,96227.0,0.0001558]
[1739357063162,0.2078304,96228.0,96227.0,0.0001558]
[1739357063752,0.2078222,96232.0,96228.0,0.2078295]
[1739357064143,0.2078249,96231.0,96228.0,0.2078295]
[1739357065341,0.2078249,96231.0,96228.0,0.2088295]
[1739357065542,0.2078249,96231.0,96229.0,0.2078273]
[1739357066253,0.09572168,96230.0,96229.0,0.2078273]
[1739357068055,0.09572168,96230.0,96229.0,0.2098273]
[1739357068652,0.09572168,96230.0,96229.0,0.2088273]
[1739357073155,0.2078249,96231.0,96229.0,0.2088273]
[1739357074756,0.2078249,96231.0,96229.0,0.2078273]
[1739357075053,0.2078249,96231.0,96229.0,0.2088273]
[1739357078562,0.5686249,96231.0,96229.0,0.2088273]
[1739357080865,0.5686249,96231.0,96229.0,0.2108273]
[1739357081361,0.5686249,96231.0,96229.0,0.2088273]
[1739357081566,0.5686249,96231.0,96229.0,0.2138273]
[1739357081867,0.5686249,96231.0,96229.0,0.2128273]
[1739357082160,0.5686249,96231.0,96229.0,0.2088273]
[1739357082365,0.5686249,96231.0,96229.0,0.2128273]
[1739357084950,0.5686249,96231.0,96229.0,0.2118273]
[1739357085160,0.5686249,96231.0,96229.0,0.2128273]
[1739357087067,0.5686249,96231.0,96229.0,0.2088273]
[1739357087363,0.5686249,96231.0,96229.0,0.2118273]
[1739357087556,0.5686249,96231.0,96229.0,0.2108273]
[1739357087756,0.5686249,96231.0,96229.0,0.2118273]
[1739357087957,0.5686249,96231.0,96229.0,0.2108273]
[1739357088868,0.5686249,96231.0,96229.0,0.2118273]
[1739357089366,0.09572117,96230.0,96229.0,0.2118273]
[1739357090268,0.09572117,96230.0,96229.0,0.2108273]
[1739357090866,0.09572117,96230.0,96229.0,0.2118273]
[1739357091567,0.09572117,96230.0,96229.0,0.2108273]
[1739357091767,0.09572117,96230.0,96229.0,0.2078273]
[1739357091969,0.09572117,96230.0,96229.0,0.2108273]
[1739357093467,0.09572117,96230.0,96229.0,0.2078273]
[1739357093671,0.09572117,96230.0,96229.0,0.2118273]
[1739357094171,0.09572117,96230.0,96229.0,0.004]
[1739357094365,0.09572117,96230.0,96229.0,0.003]
[1739357094563,0.15922117,96230.0,96194.0,0.073]
[1739357094767,0.5686693,96210.0,96200.0,0.031]
[1739357095676,0.65035469,96210.0,96200.0,0.03115589]
[1739357095972,0.52417078,96210.0,96200.0,0.00015589]
[1739357096269,0.3608,96201.0,96183.0,0.07296]
[1739357096477,0.3608,96201.0,96181.0,0.24103]
[1739357096478,0.08168539,96196.0,96187.0,0.0307]
[1739357096670,0.2078941,96199.0,96187.0,0.0307]
[1739357097377,0.3608,96188.0,96187.0,0.0307]
[1739357097575,0.3608,96188.0,96187.0,0.0397]
[1739357098377,0.3608,96188.0,96187.0,0.0387]
[1739357099965,0.3618,96188.0,96187.0,0.0397]
[1739357100679,0.3608,96188.0,96187.0,0.0387]
[1739357100875,0.3618,96188.0,96187.0,0.0387]
[1739357101478,0.3608,96188.0,96187.0,0.0327]
[1739357101670,0.3618,96188.0,96187.0,0.0377]
[1739357102875,0.3618,96188.0,96187.0,0.0357]
[1739357103078,0.3618,96188.0,96187.0,0.0397]
[1739357103469,0.68668537,96188.0,96187.0,0.0377]
[1739357103673,0.69694253,96188.0,96187.0,0.0397]
[1739357104073,0.69694253,96188.0,96187.0,0.0387]
[1739357105173,0.68668537,96188.0,96187.0,0.0387]
[1739357105475,0.32588537,96188.0,96187.0,0.0387]
[1739357106177,9e-08,96197.0,96196.0,0.2078995]
[1739357106379,0.01079596,96198.0,96196.0,0.6410995]
[1739357106681,0.01079596,96198.0,96196.0,0.9410995]
[1739357106879,0.3608,96211.0,96202.0,0.2078865]
[1739357107074,0.01068972,96220.0,96202.0,0.2078865]
[1739357107679,0.00015589,96212.0,96202.0,0.2078865]
[1739357108575,0.00015589,96212.0,96202.0,0.5078865]
[1739357109485,0.31621763,96203.0,96202.0,0.5078865]
[1739357109687,0.31621763,96203.0,96202.0,0.5138865]
[1739357110076,0.005,96203.0,96202.0,0.5078865]
[1739357110279,0.005,96203.0,96202.0,0.5148865]
[1739357110479,0.00015589,96212.0,96211.0,0.2078671]
[1739357110677,0.00015589,96212.0,96211.0,0.6412271]
[1739357112889,0.00115589,96212.0,96211.0,0.6512271]
[1739357113486,0.00115589,96212.0,96211.0,0.6552271]
[1739357113881,0.00015589,96212.0,96211.0,0.6452271]
[1739357114090,0.00115589,96212.0,96211.0,0.6572271]
[1739357115782,0.00115589,96212.0,96211.0,0.6552271]
[1739357115985,0.00115589,96212.0,96211.0,0.6512271]
[1739357116287,0.00115589,96212.0,96211.0,0.6552271]
[1739357116585,0.00115589,96212.0,96211.0,0.5826671]
[1739357116786,0.00115589,96212.0,96211.0,0.6548671]
[1739357117091,0.00115589,96212.0,96211.0,0.6508671]
[1739357117286,0.00015589,96212.0,96211.0,0.6448671]
[1739357117487,0.00115589,96212.0,96211.0,0.6558671]
[1739357117687,0.00115589,96212.0,96211.0,0.6518671]
[1739357117989,0.00115589,96212.0,96211.0,0.6558671]
[1739357118998,0.00015589,96212.0,96211.0,0.6448671]
[1739357119293,0.00115589,96212.0,96211.0,0.6578671]
[1739357119794,0.00015589,96212.0,96211.0,0.6448671]
[1739357120290,0.00115589,96212.0,96211.0,0.6548671]
[1739357120694,0.00115589,96212.0,96211.0,0.6578671]
[1739357120990,0.00115589,96212.0,96211.0,0.6588671]
[1739357122193,0.00015589,96212.0,96211.0,0.6458671]
[1739357122989,0.00015589,96212.0,96211.0,0.6408671]
[1739357123281,0.00115589,96212.0,96211.0,0.6578671]
[1739357123587,0.00115589,96212.0,96211.0,0.6588671]
[1739357125987,0.00115589,96212.0,96211.0,0.6578671]
[1739357126384,0.00115589,96212.0,96211.0,0.5856671]
[1739357126589,0.00115589,96212.0,96211.0,0.6586671]
[1739357126991,0.00015589,96212.0,96211.0,0.6456671]
[1739357127194,0.00115589,96212.0,96211.0,0.6576671]
[1739357127383,0.00115589,96212.0,96211.0,0.5856671]
[1739357127590,0.00115589,96212.0,96211.0,0.017]
[1739357127784,0.2078863,96203.0,96199.0,0.0842]
[1739357127991,0.3608,96201.0,96199.0,0.0842]
[1739357128593,0.3608,96201.0,96199.0,0.0343]
[1739357129691,0.3618,96201.0,96199.0,0.0453]
[1739357130288,0.3618,96201.0,96199.0,0.0413]
[1739357130485,0.3618,96201.0,96199.0,0.0433]
[1739357130891,0.0307,96200.0,96199.0,0.0433]
[1739357131800,0.0307,96200.0,96199.0,0.0363]
[1739357132294,0.12645258,96200.0,96199.0,0.0343]
[1739357132599,0.12745258,96200.0,96199.0,0.0343]
[1739357132793,0.2078945,96199.0,96193.0,0.00015589]
[1739357133399,0.0616,96198.0,96193.0,0.00015589]
[1739357134301,0.2079012,96196.0,96193.0,0.00015589]
[1739357134894,0.2079012,96196.0,96193.0,0.00315589]
[1739357135698,0.2089012,96196.0,96193.0,0.00015589]
[1739357136388,0.2079012,96196.0,96193.0,0.00015589]
[1739357136591,0.2099012,96196.0,96193.0,0.00015589]
[1739357136793,0.2109012,96196.0,96193.0,0.00015589]
[1739357138300,0.2089012,96196.0,96193.0,0.00015589]
[1739357138502,0.2099012,96196.0,96193.0,0.00015589]
[1739357139101,0.2079012,96196.0,96193.0,0.00015589]
[1739357139302,0.2089012,96196.0,96193.0,0.00015589]
[1739357141303,0.2079012,96196.0,96193.0,0.00015589]
[1739357141503,0.2099012,96196.0,96193.0,0.00015589]
[1739357141700,0.2079027,96195.0,96193.0,0.00015589]
[1739357141907,0.002,96196.0,96179.0,0.2079356]
[1739357142200,0.3608,96184.0,96174.0,0.0716]
[1739357142403,0.2079353,96180.0,96174.0,0.0716]
[1739357142603,0.0962,96179.0,96174.0,0.0716]
[1739357142810,0.0962,96179.0,96174.0,0.279546]
[1739357144005,0.0962,96179.0,96174.0,0.281546]
[1739357144600,0.0962,96179.0,96175.0,0.2079442]
[1739357144802,0.0972,96179.0,96175.0,0.2079442]
[1739357146120,0.0972,96179.0,96175.0,0.2099442]
[1739357146316,0.0972,96179.0,96175.0,0.2119442]
[1739357146514,0.0972,96179.0,96175.0,0.2099442]
[1739357146712,0.0972,96179.0,96175.0,0.2119442]
[1739357148024,0.10742467,96179.0,96175.0,0.2119442]
[1739357148220,0.10742467,96179.0,96175.0,0.2099442]
[1739357148516,0.3608,96176.0,96175.0,0.2099442]
[1739357148719,0.3608,96176.0,96175.0,0.2129442]
[1739357149328,0.3608,96176.0,96175.0,0.2099442]
[1739357149525,0.3608,96176.0,96175.0,0.2129442]
[1739357149928,0.3608,96176.0,96175.0,0.2109442]
[1739357150122,0.3608,96176.0,96175.0,0.2129442]
[1739357156737,0.001,96176.0,96175.0,0.2119442]
[1739357157627,0.46814467,96179.0,96175.0,0.2089442]
[1739357157841,0.46722467,96179.0,96175.0,0.004]